fUST/lending_fUST_20250720
["ID","MTS","AMOUNT","RATE_DAILY","PERIOD"]
[373363279,1752969047055,-2156.0,0.0002143,2]
[373363281,1752969047064,-407.0,0.0002143,2]
[373363283,1752969047073,-416.784,0.0002143,2]
[373363285,1752969047082,-968.0,0.0002143,2]
[373363287,1752969047091,-1487.5,0.000215,2]
[373363289,1752969047101,-3760.72538658,0.00021555,5]
[373363291,1752969047110,-500.0,0.00021612,2]
[373363293,1752969047119,-627.62,0.00021618,2]
[373363295,1752969047129,-509.79,0.00021619,2]
[373363297,1752969047138,-475.59,0.00021619,2]
[373363299,1752969047147,-1656.61,0.00021619,2]
[373363301,1752969047157,-460.0,0.0002162,2]
[373363303,1752969047166,-460.0,0.0002162,2]
[373363305,1752969047175,-590.36732532,0.0002162,2]
[373363307,1752969047185,-601.07,0.0002162,2]
[373363309,1752969047194,-896.0,0.0002162,2]
[373363311,1752969047203,-460.0,0.0002162,2]
[373363313,1752969047212,-460.0,0.0002162,2]
[373363315,1752969047221,-460.0,0.00021621,2]
[373363316,1752969047230,-1687.35,0.00021622,2]
[373363319,1752969047239,-517.28,0.00021622,2]
[373363321,1752969047248,-589.74,0.00021623,2]
[373363322,1752969047258,-392.93216627,0.00021624,2]
[373363325,1752969047268,-499.48,0.00021624,2]
[373363327,1752969047277,-168.0,0.00021681,2]
[373363329,1752969047286,-168.0,0.00021707,2]
[373363331,1752969047295,-429.3901486,0.00021782,2]
[373363333,1752969047304,-429.3901486,0.00021782,2]
[373363335,1752969047313,-429.3901486,0.00021782,2]
[373363337,1752969047322,-2000.0,0.00021794,2]
[373363339,1752969047332,-3760.72538658,0.00021797,6]
[373363341,1752969047341,-627.62,0.00021892,2]
[373363343,1752969047350,-475.59,0.00021893,2]
[373363344,1752969047360,-1656.61,0.00021893,2]
[373363348,1752969047379,-460.0,0.00021894,2]
[373363350,1752969047389,-460.0,0.00021894,2]
[373363352,1752969047399,-601.07,0.00021894,2]
[373363354,1752969047408,-896.0,0.00021894,2]
[373363356,1752969047418,-460.0,0.00021894,2]
[373363358,1752969047428,-460.0,0.00021895,2]
[373363360,1752969047438,-1687.35,0.00021896,2]
[373363362,1752969047447,-517.28,0.00021896,2]
[373363364,1752969047457,-589.74,0.00021897,2]
[373363366,1752969047467,-499.48,0.00021898,2]
[373363368,1752969047476,-500.0,0.00021917,2]
[373363370,1752969047488,-500.0,0.00021917,2]
[373363371,1752969047498,-500.0,0.00021917,2]
[373363372,1752969047507,-500.0,0.00021917,2]
[373363373,1752969047517,-500.0,0.00021917,2]
[373363374,1752969047527,-500.0,0.00021917,2]
[373363375,1752969047537,-500.0,0.00021917,2]
[373363376,1752969047547,-500.0,0.00021917,2]
[373363377,1752969047557,-500.0,0.00021917,2]
[373363378,1752969047566,-500.0,0.00021917,2]
[373363379,1752969047576,-500.0,0.00021917,2]
[373363380,1752969047586,-500.0,0.00021917,2]
[373363381,1752969047596,-500.0,0.00021917,2]
[373363382,1752969047606,-500.0,0.00021917,2]
[373363383,1752969047615,-500.0,0.00021917,2]
[373363384,1752969047626,-500.0,0.00021917,2]
[373363385,1752969047636,-500.0,0.00021917,2]
[373363386,1752969047645,-500.0,0.00021917,2]
[373363387,1752969047655,-500.0,0.00021917,2]
[373363388,1752969047666,-500.0,0.00021917,2]
[373363389,1752969047676,-188.53,0.00021917,2]
[373363390,1752969047685,-330.51937681,0.00021939,2]
[373363391,1752969047695,-500.0,0.00021993,2]
[373363392,1752969047706,-477.87561922,0.00021997,2]
[373363393,1752969047716,-7000.0,0.00022,10]
[373363394,1752969047726,-3760.72538658,0.00022038,6]
[373363395,1752969047735,-627.62,0.00022166,2]
[373363396,1752969047745,-475.59,0.00022167,2]
[373363397,1752969047755,-1656.61,0.00022167,2]
[373363398,1752969047764,-460.0,0.00022168,2]
[373363399,1752969047774,-514.45,0.00022168,2]
[373363400,1752969047783,-601.07,0.00022168,2]
[373363401,1752969047793,-896.0,0.00022168,2]
[373363402,1752969047802,-460.0,0.00022168,2]
[373363403,1752969047811,-460.0,0.00022169,2]
[373363404,1752969047821,-1687.35,0.0002217,2]
[373363405,1752969047831,-517.28,0.0002217,2]
[373363406,1752969047840,-589.74,0.00022171,2]
[373363407,1752969047850,-499.48,0.00022172,2]
[373363408,1752969047859,-168.0,0.00022185,2]
[373363409,1752969047869,-518.56083965,0.00022267,2]
[373363410,1752969047879,-3760.72538658,0.00022279,6]
[373363411,1752969047889,-2500.0,0.00022342,2]
[373363412,1752969047899,-627.62,0.0002244,2]
[373363413,1752969047908,-475.59,0.00022441,2]
[373363414,1752969047918,-1656.61,0.00022441,2]
[373363415,1752969047928,-460.0,0.00022442,2]
[373363416,1752969047937,-601.07,0.00022442,2]
[373363417,1752969047950,-896.0,0.00022442,2]
[373363418,1752969047959,-460.0,0.00022442,2]
[373363419,1752969047969,-460.0,0.00022443,2]
[373363420,1752969047979,-1687.35,0.00022444,2]
[373363421,1752969047992,-517.28,0.00022444,2]
[373363422,1752969048001,-589.74,0.00022445,2]
[373363423,1752969048011,-499.48,0.00022446,2]
[373363424,1752969048021,-223.0315306,0.00022507,2]
[373363425,1752969048031,-3760.72538658,0.00022521,7]
[373363426,1752969048040,-191.035909,0.00022603,2]
[373363427,1752969048050,-152.474155,0.00022645,2]
[373363428,1752969048060,-245.0,0.0002269,5]
[373363429,1752969048070,-152.474155,0.00022692,14]
[373363430,1752969048080,-500.0,0.00022708,2]
[373363431,1752969048090,-627.62,0.00022714,2]
[373363432,1752969048100,-475.59,0.00022715,2]
[373363433,1752969048109,-1656.61,0.00022715,2]
[373363434,1752969048119,-460.0,0.00022716,2]
[373363435,1752969048129,-601.07,0.00022716,2]
[373363436,1752969048139,-896.0,0.00022716,2]
[373363437,1752969048149,-460.0,0.00022716,2]
[373363438,1752969048159,-460.0,0.00022717,2]
[373363439,1752969048170,-1687.35,0.00022718,2]
[373363440,1752969048180,-517.28,0.00022718,2]
[373363441,1752969048190,-589.74,0.00022719,2]
[373363442,1752969048199,-499.48,0.0002272,2]
[373363443,1752969048209,-429.3901486,0.00022741,2]
[373363444,1752969048218,-429.3901486,0.00022741,2]
[373363445,1752969048229,-3760.72538658,0.00022762,7]
[373363446,1752969048239,-500.0,0.00022847,8]
[373363447,1752969048248,-500.0,0.00022898,8]
[373363448,1752969048258,-627.62,0.00022988,2]
[373363449,1752969048268,-475.59,0.00022989,2]
[373363450,1752969048278,-1656.61,0.00022989,2]
[373363451,1752969048288,-460.0,0.0002299,2]
[373363452,1752969048298,-601.07,0.0002299,2]
[373363453,1752969048308,-896.0,0.0002299,2]
[373363454,1752969048318,-460.0,0.0002299,2]
[373363455,1752969048328,-403.69,0.00022991,2]
[373363456,1752969048338,-1687.35,0.00022992,2]
[373363457,1752969048348,-517.28,0.00022992,2]
[373363458,1752969048357,-589.74,0.00022993,2]
[373363459,1752969048366,-499.48,0.00022994,2]
[373363460,1752969048377,-823.0,0.00022995,2]
[373363461,1752969048386,-160.0,0.00023,3]
[373363462,1752969048396,-545.173175,0.00023003,8]
[373363463,1752969048407,-3760.72538658,0.00023003,8]
[373363464,1752969048416,-320.4990833,0.00023015,2]
[373363465,1752969048426,-178.1115364,0.00023015,2]
[373363466,1752969048435,-614.9345468,0.00023015,2]
[373363467,1752969048444,-159.8125085,0.00023015,2]
[373363468,1752969048456,-178.1115364,0.00023015,2]
[373363469,1752969048466,-577.1515091,0.00023015,2]
[373363470,1752969048476,-178.1115364,0.00023015,2]
[373363471,1752969048485,-577.1515091,0.00023015,2]
[373363472,1752969048495,-178.1115364,0.00023015,2]
[373363473,1752969048505,-577.1515091,0.00023015,2]
[373363474,1752969048514,-178.1115364,0.00023018,2]
[373363475,1752969048524,-477.87561922,0.00023075,2]
[373363476,1752969048533,-152.474155,0.000231,7]
[373363477,1752969048543,-168.0,0.00023142,2]
[373363478,1752969048552,-168.0,0.00023167,2]
[373363479,1752969048562,-152.474155,0.00023197,5]
[373363480,1752969048571,-3760.72538658,0.00023245,8]
[373363481,1752969048581,-627.62,0.00023262,2]
[373363482,1752969048591,-475.59,0.00023263,2]
[373363483,1752969048601,-1656.61,0.00023263,2]
[373363484,1752969048611,-276.76245149,0.00023264,2]
[373363485,1752969048620,-601.07,0.00023264,2]
[373363486,1752969048631,-896.0,0.00023264,2]
[373363487,1752969048640,-518.64102492,0.00023264,2]
[373363488,1752969048650,-1687.35,0.00023266,2]
[373363489,1752969048659,-517.28,0.00023266,2]
[373363490,1752969048669,-589.74,0.00023267,2]
[373363491,1752969048678,-499.48,0.00023268,2]
[373363492,1752969048688,-152.474155,0.000233,8]
[373363493,1752969048698,-250.0,0.00023366,2]
[373363494,1752969048708,-152.474155,0.00023384,14]
[373363495,1752969048718,-150.0,0.000234,5]
[373363496,1752969048728,-2142.59993248,0.000234,3]
[373363497,1752969048738,-500.81129186,0.000234,2]
[373363498,1752969048748,-525.83049785,0.000234,3]
[373363499,1752969048757,-839.454303,0.000234,3]
[373363500,1752969048767,-160.0,0.000234,3]
[373363501,1752969048778,-230.94145789,0.000234,3]
[373363502,1752969048788,-215.67360783,0.000234,3]
[373363503,1752969048798,-152.474155,0.00023468,8]
[373363504,1752969048808,-500.0,0.00023472,2]
[373363505,1752969048818,-500.0,0.00023472,2]
[373363506,1752969048827,-150.0,0.00023473,2]
[373363507,1752969048836,-500.0,0.00023473,2]
[373363508,1752969048846,-150.0,0.00023473,2]
[373363509,1752969048856,-500.0,0.00023473,2]
[373363510,1752969048865,-371.89893966,0.00023473,2]
[373363511,1752969048875,-168.0,0.00023486,2]
[373363512,1752969048885,-3760.72538658,0.00023486,9]
[373363513,1752969048895,-2591.12908011,0.000235,2]
[373363514,1752969048904,-189167.00090536,0.000235,4]
[373363515,1752969048914,-228488.85575569,0.000235,4]
[373363516,1752969049021,-285.28800005,0.000235,4]
[373363517,1752969049338,-460.0,0.00018057,2]
[373363518,1752969049348,-460.0,0.00018331,2]
[373363519,1752969049358,-49.74033646,0.00018605,2]
[373363520,1752969049369,-410.25966354,0.00018605,2]
[373363521,1752969049380,-827.08,0.00018878,2]
[373363522,1752969049389,-460.0,0.00018879,2]
[373363523,1752969049398,-384.56481298,0.00019153,2]
[373363525,1752969049410,-75.43518702,0.00019153,2]
[373363527,1752969049419,-182.02153517,0.00019426,2]
[373363529,1752969049429,-146.2160878,0.00019426,2]
[373363531,1752969049441,-16.61091976,0.00019426,2]
[373363533,1752969049450,-460.0,0.00019427,2]
[373363534,1752969049459,-447.26928852,0.00019701,2]
[373363535,1752969049471,-12.73071148,0.00019701,2]
[373363536,1752969049480,-261.35563636,0.00021894,2]
[373363557,1752969049904,-460.0,0.00017784,2]
[373363559,1752969049913,-460.0,0.00017784,2]
[373363561,1752969049923,-460.0,0.00018058,2]
[373363563,1752969049933,-176.17766861,0.00018332,2]
[373363566,1752969049946,-283.82233139,0.00018332,2]
[373363568,1752969049957,-827.08,0.00019152,2]
[373363569,1752969049966,-827.08,0.00019426,2]
[373363571,1752969049975,-827.08,0.000197,2]
[373363574,1752969049986,-827.08,0.00019974,2]
[373363576,1752969049995,-460.0,0.00019975,2]
[373363578,1752969050004,-84.07054903,0.00020248,2]
[373363580,1752969050016,-743.00945097,0.00020248,2]
[373363582,1752969050025,-106.79234328,0.00020249,2]
[373363584,1752969050036,-353.20765672,0.00020249,2]
[373363586,1752969050046,-827.08,0.00020522,2]
[373363588,1752969050055,-460.0,0.00020523,2]
[373363590,1752969050065,-508.47930983,0.00020796,2]
[373363612,1752969050254,-460.0,0.00017784,2]
[373363614,1752969050263,-460.0,0.00018058,2]
[373363616,1752969050274,-460.0,0.00018332,2]
[373363618,1752969050283,-318.60069017,0.00020796,2]
[373363620,1752969050292,-460.0,0.00020797,2]
[373363622,1752969050301,-827.08,0.0002107,2]
[373363624,1752969050312,-460.0,0.00021071,2]
[373363626,1752969050321,-827.08,0.00021344,2]
[373363628,1752969050331,-540.31,0.00021345,2]
[373363630,1752969050340,-827.08,0.00021618,2]
[373363632,1752969050350,-827.08,0.00021892,2]
[373363634,1752969050359,-69.89822086,0.00021894,2]
[373363636,1752969050369,-827.08,0.00022166,2]
[373363638,1752969050379,-4515.30654483,0.000235,4]
[373363640,1752969050390,-510.2507475,0.000235,4]
[373363643,1752969050401,-7293.99937082,0.000235,4]
[373363645,1752969050413,-881.7086952,0.000235,4]
[373363647,1752969050424,-1539.4885914,0.000235,4]
[373368775,1752969200308,177.734941,0.00013699,2]
[373368778,1752969726987,-207.86280395,0.00017685,2]
[373368779,1752969727011,-39.35543178,0.00017772,2]
[373368780,1752969734816,-189.67344213,0.00017772,2]
[373368808,1752970231964,-965.95504081,0.00017772,2]
[373368811,1752970232059,-4.04495919,0.00017772,2]
[373368812,1752970232069,-214.26297717,0.00017773,2]
[373368813,1752970232079,-504.93958316,0.00017773,2]
[373368814,1752970232089,-500.0,0.00017773,2]
[373368815,1752970232099,-500.0,0.00017773,2]
[373368816,1752970232109,-504.20994792,0.00017773,2]
[373368817,1752970232118,-500.0,0.00017773,2]
[373368818,1752970232127,-500.0,0.00017773,2]
[373368819,1752970232136,-261.47405673,0.00017773,2]
[373368820,1752970232279,-500.0,0.00017773,2]
[373368821,1752970232289,-460.0,0.0001778,2]
[373368822,1752970232299,-460.0,0.0001778,2]
[373368823,1752970232309,-460.0,0.0001778,2]
[373368824,1752970232318,-460.0,0.0001778,2]
[373368825,1752970232328,-460.0,0.0001778,2]
[373368826,1752970232337,-460.0,0.0001778,2]
[373368827,1752970232347,-460.0,0.0001778,2]
[373368828,1752970232356,-460.0,0.0001778,2]
[373368829,1752970232365,-460.0,0.0001778,2]
[373368830,1752970232375,-356.92758961,0.0001778,2]
[373368831,1752970232384,-460.0,0.0001778,2]
[373368832,1752970232394,-460.0,0.0001778,2]
[373368833,1752970232403,-460.0,0.0001778,2]
[373368834,1752970232413,-460.0,0.0001778,2]
[373368835,1752970232422,-460.0,0.0001778,2]
[373368836,1752970232431,-460.0,0.0001778,2]
[373368837,1752970232442,-460.0,0.0001778,2]
[373368838,1752970232451,-463.13925988,0.0001778,2]
[373368839,1752970232460,-460.0,0.0001778,2]
[373368840,1752970232470,-460.0,0.0001778,2]
[373368841,1752970232479,-460.0,0.0001778,2]
[373368842,1752970232492,-460.0,0.0001778,2]
[373368843,1752970232501,-460.0,0.0001778,2]
[373368844,1752970232511,-460.0,0.0001778,2]
[373368845,1752970232520,-284.43458882,0.0001778,2]
[373368846,1752970232530,-460.0,0.0001778,2]
[373368847,1752970232540,-460.0,0.0001778,2]
[373368848,1752970232549,-460.0,0.0001778,2]
[373368849,1752970232558,-460.0,0.0001778,2]
[373368850,1752970232569,-460.0,0.0001778,2]
[373368851,1752970232578,-837.38,0.0001778,2]
[373368852,1752970232588,-460.0,0.0001778,2]
[373368853,1752970232598,-460.0,0.0001778,2]
[373368854,1752970232607,-460.0,0.0001778,2]
[373368855,1752970232617,-460.0,0.0001778,2]
[373368856,1752970232627,-460.0,0.0001778,2]
[373368857,1752970232636,-460.0,0.0001778,2]
[373368858,1752970232645,-460.0,0.0001778,2]
[373368859,1752970232656,-460.0,0.0001778,2]
[373368860,1752970232665,-460.0,0.0001778,2]
[373368861,1752970232674,-460.0,0.0001778,2]
[373368862,1752970232683,-1199.84,0.0001778,2]
[373368863,1752970232693,-460.0,0.0001778,2]
[373368864,1752970232703,-460.0,0.0001778,2]
[373368865,1752970232712,-460.0,0.0001778,2]
[373368866,1752970232721,-460.44533274,0.0001778,2]
[373368867,1752970232730,-460.0,0.0001778,2]
[373368868,1752970232740,-460.0,0.0001778,2]
[373368869,1752970232749,-465.0,0.0001778,2]
[373368870,1752970232760,-460.0,0.0001778,2]
[373368871,1752970232770,-460.0,0.0001778,2]
[373368872,1752970232779,-460.0,0.0001778,2]
[373368873,1752970232790,-460.0,0.0001778,2]
[373368874,1752970232799,-463.24333493,0.0001778,2]
[373368875,1752970232808,-460.0,0.0001778,2]
[373368876,1752970232818,-460.0,0.0001778,2]
[373368877,1752970232827,-460.0,0.0001778,2]
[373368878,1752970232836,-460.0,0.0001778,2]
[373368879,1752970232845,-460.0,0.0001778,2]
[373368880,1752970232855,-460.0,0.00017781,2]
[373368881,1752970232864,-460.0,0.00017781,2]
[373368882,1752970232874,-554.27069136,0.00017781,2]
[373368883,1752970232883,-460.0,0.00017781,2]
[373368884,1752970232892,-460.0,0.00017781,2]
[373368885,1752970232904,-460.0,0.00017781,2]
[373368886,1752970232913,-460.0,0.00017781,2]
[373368887,1752970232922,-262.36707031,0.00017781,2]
[373368888,1752970232931,-460.0,0.00017781,2]
[373368889,1752970232942,-460.0,0.00017781,2]
[373368890,1752970232951,-460.0,0.00017781,2]
[373368891,1752970232961,-460.0,0.00017781,2]
[373368892,1752970232970,-460.43973544,0.00017781,2]
[373368893,1752970232980,-460.0,0.00017781,2]
[373368894,1752970232990,-460.0,0.00017781,2]
[373368895,1752970232999,-460.0,0.00017781,2]
[373368896,1752970233009,-209.48986205,0.00017781,2]
[373368897,1752970233018,-460.0,0.00017781,2]
[373368898,1752970233028,-460.0,0.00017781,2]
[373368899,1752970233037,-460.0,0.00017781,2]
[373368900,1752970233047,-460.0,0.00017781,2]
[373368901,1752970233056,-460.0,0.00017781,2]
[373368902,1752970233066,-460.0,0.00017781,2]
[373368903,1752970233075,-468.47513244,0.00017781,2]
[373368904,1752970233085,-460.0,0.00017781,2]
[373368905,1752970233095,-460.0,0.00017781,2]
[373368906,1752970233104,-460.0,0.00017781,2]
[373368907,1752970233115,-460.0,0.00017781,2]
[373368908,1752970233124,-460.0,0.00017781,2]
[373368909,1752970233133,-478.80915902,0.00017781,2]
[373368910,1752970233144,-460.0,0.00017781,2]
[373368911,1752970233153,-460.0,0.00017781,2]
[373368912,1752970233163,-460.0,0.00017781,2]
[373368913,1752970233173,-460.0,0.00017781,2]
[373368914,1752970233182,-460.0,0.00017781,2]
[373368915,1752970233192,-460.0,0.00017781,2]
[373368916,1752970233203,-460.0,0.00017781,2]
[373368917,1752970233212,-460.0,0.00017781,2]
[373368918,1752970233222,-460.0,0.00017781,2]
[373368919,1752970233231,-460.0,0.00017781,2]
[373368920,1752970233240,-460.0,0.00017781,2]
[373368921,1752970233250,-196.46573234,0.00017781,2]
[373368922,1752970233260,-460.0,0.00017781,2]
[373368923,1752970233269,-460.0,0.00017781,2]
[373368924,1752970233279,-460.0,0.00017781,2]
[373368925,1752970233288,-460.0,0.00017781,2]
[373368926,1752970233297,-342.261144,0.00017781,2]
[373368927,1752970233307,-460.0,0.00017781,2]
[373368928,1752970233316,-460.0,0.00017781,2]
[373368929,1752970233325,-460.0,0.00017781,2]
[373368930,1752970233335,-460.0,0.00017781,2]
[373368931,1752970233344,-460.0,0.00017781,2]
[373368932,1752970233353,-460.0,0.00017781,2]
[373368933,1752970233362,-460.0,0.00017781,2]
[373368934,1752970233372,-460.0,0.00017781,2]
[373368935,1752970233381,-460.0,0.00017781,2]
[373368936,1752970233390,-460.0,0.00017781,2]
[373368937,1752970233401,-558.09422032,0.00017781,2]
[373368938,1752970233410,-460.0,0.00017781,2]
[373368939,1752970233419,-460.0,0.00017781,2]
[373368940,1752970233428,-460.0,0.00017781,2]
[373368941,1752970233437,-461.27021462,0.00017781,2]
[373368942,1752970233447,-460.0,0.00017781,2]
[373368943,1752970233457,-460.0,0.00017781,2]
[373368944,1752970233466,-460.0,0.00017781,2]
[373368945,1752970233476,-460.0,0.00017781,2]
[373368946,1752970233486,-460.0,0.00017781,2]
[373368947,1752970233497,-595.96505135,0.00017781,2]
[373368948,1752970233507,-460.0,0.00017781,2]
[373368949,1752970233516,-460.0,0.00017781,2]
[373368950,1752970233527,-460.0,0.00017781,2]
[373368951,1752970233536,-460.0,0.00017781,2]
[373368952,1752970233545,-460.0,0.00017781,2]
[373368953,1752970233554,-460.0,0.00017781,2]
[373368954,1752970233566,-460.0,0.00017781,2]
[373368955,1752970233575,-460.0,0.00017781,2]
[373368956,1752970233584,-460.0,0.00017781,2]
[373368957,1752970233593,-460.0,0.00017781,2]
[373368958,1752970233602,-460.0,0.00017781,2]
[373368959,1752970233610,-460.0,0.00017781,2]
[373368960,1752970233619,-460.0,0.00017781,2]
[373368961,1752970233628,-460.0,0.00017781,2]
[373368962,1752970233636,-460.0,0.00017781,2]
[373368963,1752970233645,-460.0,0.00017781,2]
[373368964,1752970233654,-460.0,0.00017781,2]
[373368965,1752970233662,-460.0,0.00017781,2]
[373368966,1752970233671,-460.0,0.00017781,2]
[373368967,1752970233679,-460.0,0.00017781,2]
[373368968,1752970233688,-460.0,0.00017781,2]
[373368969,1752970233697,-460.0,0.00017781,2]
[373368970,1752970233706,-460.0,0.00017781,2]
[373368971,1752970233716,-460.0,0.00017781,2]
[373368972,1752970233725,-460.0,0.00017781,2]
[373368973,1752970233734,-460.0,0.00017781,2]
[373368974,1752970233742,-460.0,0.00017781,2]
[373368975,1752970233750,-460.0,0.00017781,2]
[373368976,1752970233759,-460.0,0.00017781,2]
[373368977,1752970233767,-460.0,0.00017781,2]
[373368978,1752970233775,-460.0,0.00017781,2]
[373368979,1752970233783,-460.0,0.00017781,2]
[373368980,1752970233791,-460.0,0.00017781,2]
[373368981,1752970233800,-460.0,0.00017781,2]
[373368982,1752970233808,-377.36032985,0.00017781,2]
[373368983,1752970233816,-460.0,0.00017781,2]
[373368984,1752970233825,-460.0,0.00017781,2]
[373368985,1752970233834,-460.0,0.00017781,2]
[373368986,1752970233842,-460.0,0.00017781,2]
[373368987,1752970233851,-460.0,0.00017781,2]
[373368988,1752970233859,-460.0,0.00017781,2]
[373368989,1752970233867,-460.0,0.00017781,2]
[373368990,1752970233877,-460.0,0.00017781,2]
[373368991,1752970233886,-460.0,0.00017781,2]
[373368992,1752970233895,-460.0,0.00017781,2]
[373368993,1752970233905,-460.0,0.00017781,2]
[373368994,1752970233913,-460.0,0.00017781,2]
[373368995,1752970233922,-517.26472086,0.00017781,2]
[373368996,1752970233931,-460.0,0.00017781,2]
[373368997,1752970233940,-460.0,0.00017781,2]
[373368998,1752970233949,-660.77,0.00017781,2]
[373368999,1752970233957,-460.0,0.00017781,2]
[373369000,1752970233967,-460.0,0.00017781,2]
[373369001,1752970233975,-466.16899632,0.00017781,2]
[373369002,1752970233984,-460.0,0.00017781,2]
[373369003,1752970233994,-460.0,0.00017781,2]
[373369004,1752970234003,-460.0,0.00017781,2]
[373369005,1752970234011,-460.0,0.00017781,2]
[373369006,1752970234020,-501.78024727,0.00017781,2]
[373369007,1752970234029,-460.0,0.00017781,2]
[373369008,1752970234038,-460.0,0.00017781,2]
[373369009,1752970234047,-562.69462351,0.00017781,2]
[373369010,1752970234056,-460.0,0.00017781,2]
[373369011,1752970234064,-460.0,0.00017781,2]
[373369012,1752970234073,-460.0,0.00017781,2]
[373369013,1752970234081,-461.24071732,0.00017781,2]
[373369014,1752970234089,-460.0,0.00017781,2]
[373369015,1752970234098,-460.0,0.00017781,2]
[373369016,1752970234107,-460.0,0.00017781,2]
[373369017,1752970234115,-460.0,0.00017781,2]
[373369018,1752970234124,-460.0,0.00017781,2]
[373369019,1752970234133,-460.0,0.00017781,2]
[373369020,1752970234142,-460.0,0.00017781,2]
[373369021,1752970234151,-460.0,0.00017781,2]
[373369022,1752970234161,-460.0,0.00017781,2]
[373369023,1752970234171,-460.0,0.00017781,2]
[373369024,1752970234181,-460.0,0.00017781,2]
[373369025,1752970234190,-460.0,0.00017781,2]
[373369026,1752970234199,-460.0,0.00017781,2]
[373369027,1752970234208,-460.0,0.00017781,2]
[373369028,1752970234218,-460.0,0.00017781,2]
[373369029,1752970234228,-460.0,0.00017781,2]
[373369030,1752970234238,-460.0,0.00017781,2]
[373369031,1752970234248,-460.0,0.00017781,2]
[373369032,1752970234257,-460.0,0.00017781,2]
[373369033,1752970234268,-460.0,0.00017781,2]
[373369034,1752970234277,-460.0,0.00017781,2]
[373369035,1752970234287,-479.80271025,0.00017781,2]
[373369036,1752970234296,-460.0,0.00017781,2]
[373369037,1752970234307,-232.23016428,0.00017781,2]
[373369038,1752970234316,-460.0,0.00017781,2]
[373369039,1752970234326,-460.0,0.00017781,2]
[373369040,1752970234335,-460.0,0.00017781,2]
[373369041,1752970234345,-460.0,0.00017781,2]
[373369042,1752970234354,-460.0,0.00017781,2]
[373369043,1752970234364,-460.0,0.00017781,2]
[373369044,1752970234373,-460.0,0.00017781,2]
[373369045,1752970234382,-460.0,0.00017781,2]
[373369046,1752970234391,-460.0,0.00017781,2]
[373369047,1752970234401,-460.0,0.00017781,2]
[373369048,1752970234410,-460.0,0.00017781,2]
[373369049,1752970234419,-460.0,0.00017781,2]
[373369050,1752970234429,-460.0,0.00017781,2]
[373369051,1752970234438,-460.0,0.00017781,2]
[373369052,1752970234450,-460.0,0.00017781,2]
[373369053,1752970234459,-460.0,0.00017781,2]
[373369054,1752970234469,-460.0,0.00017781,2]
[373369055,1752970234478,-460.0,0.00017781,2]
[373369056,1752970234492,-460.0,0.00017781,2]
[373369057,1752970234502,-460.0,0.00017781,2]
[373369058,1752970234512,-460.0,0.00017781,2]
[373369059,1752970234521,-460.0,0.00017781,2]
[373369060,1752970234531,-461.59801402,0.00017781,2]
[373369061,1752970234540,-197.52058712,0.00017782,2]
[373369062,1752970234549,-460.0,0.00017782,2]
[373369063,1752970234559,-460.0,0.00017782,2]